Cogmind - Beta 14 @@@ ROGUE MODE // 2024.08.25 @ 18:15:04 Player: Epsilon 11 Result: Heading to fleet! Performance ------------- Evolutions (9) 4500 Regions Visited (17) 3400 Robots Destroyed (98) 490 Value Destroyed (3097) 3097 Prototype IDs (36) 720 Alien Tech Used (1) 200 Bonus (10554) 10554 TOTAL SCORE: 22961 Bonus ------- High Alert Combat Kills 226 Follower Combat Kills 3360 Network Hubs Disabled 200 Registered with UFD 300 Built Enhanced Grunts 300 A7 Reached Mainframe 300 Met R17 at Cetus 500 Used Core Reset Matrix 3000 Win 3000 Friendly Fire -632 Cogmind --------- Core Integrity 1289/1600 Matter 298/300 Energy 188/190 System Corruption 0% Temperature Cool (4) Movement Flying (29) Location To Fleet Rendezvous Parts ------- > --- POWER (2) -------- Light Quantum Reactor > --- PROPULSION (8) --- Xenon Bombardment Thruster Xenon Bombardment Thruster Diametric Drive Impulse Thruster Array > --- UTILITY (11) ----- Improved Melee Analysis Suite Improved Target Analyzer Graphene Brace Hacking Suite Improved Hacking Suite Advanced Component Analysis Suite > --- WEAPON (4) ------- Powered Hammer > --- INVENTORY (5) ---- Linear Gravjet Advanced Thermal Shield Advanced Force Field Peak State ------------ > --- POWER ------------ Compact Particle Reactor Light Quantum Reactor > --- PROPULSION ------- Linear Gravjet Linear Gravjet Linear Gravjet Linear Gravjet Improved Linear Gravjet Impulse Thruster Impulse Thruster Array > --- UTILITY ---------- Improved Cooling System Improved Sensor Array Improved Melee Analysis Suite Advanced Launcher Guidance Computer Improved Target Analyzer Graphene Brace Improved Focal Shield Improved Hacking Suite Advanced Component Analysis Suite > --- WEAPON ----------- Backup Laser VII Heavy Machine Gun > --- INVENTORY -------- Nuclear Pulse Array Stasis Canceller Advanced Thermal Shield Advanced Force Field [Rating: 137] Favorites ----------- Power Heavy Ion Engine Engine Heavy Ion Engine Power Core Fission Core Reactor Compact Particle Reactor Propulsion Overtuned Scrapsphere Treads Improved Treads Leg Titanium Leg Wheel Overtuned Scrapsphere Hover Unit Linear Gravjet Flight Unit Field Propulsion Drive Utility Medium Storage Unit Device Scrap Suit Storage Medium Storage Unit Processor Improved Targeting Computer Hackware Hacking Suite Protection Improved Light Armor Plating Weapon Heavy EM Shotgun Energy Gun Heavy EM Shotgun Energy Cannon Heavy Phase Cannon Ballistic Gun Autogun Ballistic Cannon Assault Cannon Launcher Advanced EMP Blaster Special Weapon Plasma Cutter Impact Weapon Powered Hammer Piercing Weapon Spear Build | -11 -10 -9 -8 -8 -8 -8 -6 -6 -6 -6 -6 -5 -4 -3 -3 -2 -1 ------- Run | Yrd Mat Mat Mat Sto Rec Scr Fac Ext Cet Arc Hub Fac Fac Res Qua Res Acc Slots Evolved 18 | . . 2 2 . . . 4 . . . . 2 2 2 . 2 2 Power 1 | . . . . . . . . . . . . . . . . 1 . Propulsion 6 | . . . 1 . . . 1 . . . . . 2 1 . 1 . Utility 9 | . . 2 1 . . . 2 . . . . 2 . . . . 2 Weapon 2 | . . . . . . . 1 . . . . . . 1 . . . Parts Attached 213 | 6 3 12 10 28 1 6 16 16 7 4 21 33 3 6 3 13 25 Power 19 | 1 . 1 2 2 . . 1 2 . . . 4 . 1 . 2 3 Engine 10 | 1 . 1 2 2 . . . 1 . . . 2 . 1 . . . Core 4 | . . . . . . . 1 1 . . . 2 . . . . . Reactor 5 | . . . . . . . . . . . . . . . . 2 3 Propulsion 62 | 2 . 4 3 6 . 5 1 . . 1 10 10 3 2 2 5 8 Treads 1 | . . . . . . . . . . 1 . . . . . . . Leg 15 | . . . 1 6 . 2 . . . . 4 2 . . . . . Wheel 22 | 2 . 4 2 . . 3 1 . . . 6 3 1 . . . . Hover 7 | . . . . . . . . . . . . 1 . . . 5 1 Flight 17 | . . . . . . . . . . . . 4 2 2 2 . 7 Utility 81 | 1 2 5 4 6 . 1 6 11 4 3 10 10 . 3 . 5 10 Device 38 | . 1 1 2 2 . 1 2 5 1 . 6 5 . 1 . 4 7 Storage 4 | 1 1 . . . . . . . . 1 . 1 . . . . . Processor 11 | . . 1 . . . . 2 1 . . 2 2 . . . 1 2 Hackware 8 | . . . 1 1 . . . . . 1 . 2 . 2 . . 1 Protection 20 | . . 3 1 3 . . 2 5 3 1 2 . . . . . . Artifact . | . . . . . . . . . . . . . . . . . . Weapon 51 | 2 1 2 1 14 1 . 8 3 3 . 1 9 . . 1 1 4 Energy Gun 25 | 1 1 1 1 7 1 . 5 2 . . . 3 . . . 1 2 Energy Cannon 2 | . . . . 1 . . . . . . . 1 . . . . . Ballistic Gun 8 | 1 . 1 . 1 . . . . 2 . 1 1 . . . . 1 Ballistic Cannon 1 | . . . . 1 . . . . . . . . . . . . . Launcher 4 | . . . . 3 . . . . . . . 1 . . . . . Special Weapon 9 | . . . . 1 . . 3 1 1 . . 2 . . 1 . . Impact Weapon 1 | . . . . . . . . . . . . . . . . . 1 Slashing Weapon . | . . . . . . . . . . . . . . . . . . Piercing Weapon 1 | . . . . . . . . . . . . 1 . . . . . Special Melee Weapon . | . . . . . . . . . . . . . . . . . . Unidentified Prototypes 12 | . . . . 5 . . . . 2 1 1 1 . . 1 . 1 Corrupted Parts 1 | . . . . . . . . . . . . 1 . . . . . System Corruption 2 | . . . . . . . . . . . . 2 . . . . . Parts Lost 89 | . . 2 1 7 . . 1 2 . 1 14 21 8 9 7 4 12 Power 13 | . . . . 1 . . . 1 . . 1 3 1 2 1 1 2 Propulsion 33 | . . 2 1 3 . . . . . 1 6 7 3 3 2 2 3 Utility 25 | . . . . 3 . . . . . . 4 7 3 3 1 . 4 Weapon 18 | . . . . . . . 1 1 . . 3 4 1 1 3 1 3 Highest Loss Streak 10 | . . 1 1 3 . . 1 2 . 1 9 10 8 6 8 2 7 To Critical Strikes . | . . . . . . . . . . . . . . . . . . Average Slot Usage (%) 86 | . 92 94 98 94 100 93 89 92 92 88 88 63 40 34 15 38 63 Engine 5 | . 14 11 9 9 9 9 3 2 . . . . 4 1 . . . Core 1 | . . . . . . . 2 3 6 6 5 2 . . . . . Leg 8 | . . . 1 12 27 19 . . . . 8 . . . . . . Wheel 12 | . 28 20 23 10 . 7 23 26 26 21 13 10 . . . . . Flight 1 | . . . . . . . . . . . . 1 8 5 2 3 11 Device 9 | . 6 11 9 8 9 9 11 9 6 6 9 12 . 1 . 5 14 Storage 6 | . 14 11 9 9 9 9 6 6 6 6 6 3 . . . . . Processor 9 | . . 10 9 9 9 9 13 13 13 13 12 9 14 8 . 2 7 Hackware 7 | . . . 9 9 9 9 6 6 6 6 6 6 7 7 7 4 5 Protection 3 | . . 8 9 7 9 3 1 3 5 5 4 . . . . . . Energy Gun 13 | . 14 11 9 11 18 18 19 17 13 13 11 2 4 6 2 2 2 Ballistic Gun 2 | . 14 11 9 3 . . . . 3 6 5 2 . . . . 3 Peak Build Rating 137 | 6 8 16 31 36 37 43 57 57 63 67 78 78 41 37 36 81 137 Average Rating 45 | 4 7 13 23 30 36 38 51 53 60 63 65 48 33 29 19 61 106 On Entrance 32 | . 6 8 16 31 36 37 38 57 55 63 67 20 41 18 19 23 51 Naked Turns . | . . . . . . . . . . . . . . . . . . Heaviest Build 50 | 10 18 31 33 33 33 33 44 46 48 47 50 38 14 6 8 33 50 Greatest Support 73 | 20 20 22 40 51 51 63 34 34 34 34 73 48 14 15 16 36 55 Greatest Overweight (x) 6 | . . 3 1 2 . 3 1 1 1 1 6 3 4 . 1 1 1 Average Overweight (x) . | . . . . . . . . . 1 1 . . . . . . . Largest Inventory Capacity 10 | 8 10 10 10 10 10 10 10 10 10 10 10 10 5 5 5 5 5 Average Capacity 9 | 7 8 10 10 10 10 10 10 10 10 10 10 7 5 5 5 5 5 Most Carried 10 | 3 6 10 10 10 10 10 10 10 10 10 10 8 5 5 5 5 5 Average Carried 8 | 2 4 6 9 9 9 8 9 9 9 10 9 5 3 4 4 3 3 Final Capacity 10 | 8 10 10 10 10 10 10 10 10 10 10 10 5 5 5 5 5 5 Final Carried 10 | 3 5 8 10 10 10 10 10 10 10 10 9 5 3 5 5 3 3 Class Distribution -------------------- 37% | Commander-Scrapper 18% | Commander-Mutant 11% | Mutant 7% | Scavenger-Mutant 6% | Hacker-Mutant 4% | Scrapper 3% | Scavenger-Scrapper 3% | Sprinter Dominant Class ---------------- Mutant | -10/Materials Mutant | -9/Materials Scavenger-Mutant | -8/Materials Mutant | -8/Storage Commander-Mutant | -8/Recycling Commander-Scrapper | -8/Scraptown Commander-Scrapper | -6/Factory Commander-Scrapper | -6/Extension Commander-Scrapper | -6/Cetus Commander-Scrapper | -6/Archives Scavenger-Tank | -6/Hub_04(d) Hacker-Mutant | -5/Factory Hacker-Mutant | -4/Factory Hacker-Mutant | -3/Research Hacker-Mutant | -3/Quarantine Sprinter | -2/Research Sprinter | -1/Access Resources | -11 -10 -9 -8 -8 -8 -8 -6 -6 -6 -6 -6 -5 -4 -3 -3 -2 -1 ----------- Run | Yrd Mat Mat Mat Sto Rec Scr Fac Ext Cet Arc Hub Fac Fac Res Qua Res Acc Matter Collected 2990 | 260 31 239 465 379 179 60 80 215 84 75 232 70 . . 167 168 286 Remotely . | . . . . . . . . . . . . . . . . . . Salvage Created 4290 | . 123 426 604 1115 192 . 566 561 . 180 185 268 . 39 . . 31 Parts 197 | . 11 34 33 39 12 . 15 11 . 7 17 14 . 1 . . 3 Haulers Intercepted . | . . . . . . . . . . . . . . . . . . Recyclers Shooed 5 | . . . 2 . 1 . 1 1 . . . . . . . . . Parts Field Recycled . | . . . . . . . . . . . . . . . . . . Retrieved Matter . | . . . . . . . . . . . . . . . . . . Parts Self-Destructed . | . . . . . . . . . . . . . . . . . . Prevented . | . . . . . . . . . . . . . . . . . . Kills | -11 -10 -9 -8 -8 -8 -8 -6 -6 -6 -6 -6 -5 -4 -3 -3 -2 -1 ------- Run | Yrd Mat Mat Mat Sto Rec Scr Fac Ext Cet Arc Hub Fac Fac Res Qua Res Acc Combat Hostiles Destroyed 66 | . 5 11 11 18 2 . 2 7 . 1 1 6 . 1 . . 1 Melee 1 | . . . . . . . . . . . . 1 . . . . . Guns 47 | . 5 11 11 12 2 . . 2 . 1 1 . . 1 . . 1 Cannons 2 | . . . . 1 . . . . . . . 1 . . . . . AOE 15 | . . . . 4 . . 2 5 . . . 4 . . . . . Classes Destroyed 10 | . 2 3 1 3 . . . 1 . . . . . . . . . Worker 11 | . . 2 1 3 . . 1 . . . 2 2 . . . . . Recycler 7 | . . . 1 1 1 . 3 1 . . . . . . . . . Operator 5 | . . . . 1 . . . . . 3 1 . . . . . . Watcher 7 | . . 1 1 1 . . 1 1 . . 2 . . . . . . Swarmer 22 | . 3 4 3 5 . . . . . . . 5 . 1 . . 1 Grunt 26 | . 2 4 4 6 . . 2 6 . . 1 1 . . . . . Brawler 1 | . . . . 1 . . . . . . . . . . . . . Duelist 1 | . . . . 1 . . . . . . . . . . . . . Sentry 15 | . . 3 4 5 2 . . . . 1 . . . . . . . Thug 2 | . . . . 2 . . . . . . . . . . . . . Guerrilla 1 | . . . . . . . . 1 . . . . . . . . . Best Kill Streak 8 | . 3 8 3 6 2 . 4 3 . 2 2 6 . 1 . . 1 Combat Bots Only 8 | . 3 8 3 5 1 . 2 3 . 1 1 5 . 1 . . 1 Max Kills in Single Turn 3 | . 1 1 1 3 2 . 2 3 . 1 2 2 . 1 . . 1 Gunslinging . | . . . . . . . . . . . . . . . . . . Exploded 3 | . . . . 2 . . 2 3 . . . 1 . . . . . Melee 1 | . . . . . . . . . . . . 1 . . . . . Uniques/NPCs Destroyed . | . . . . . . . . . . . . . . . . . . Combat | -11 -10 -9 -8 -8 -8 -8 -6 -6 -6 -6 -6 -5 -4 -3 -3 -2 -1 -------- Run | Yrd Mat Mat Mat Sto Rec Scr Fac Ext Cet Arc Hub Fac Fac Res Qua Res Acc Hostile Shots Fired 1096 | . 15 40 44 113 8 . 34 111 2 12 122 160 82 100 71 53 129 Missed 449 | . 1 14 12 34 2 . 15 37 . 1 38 71 39 49 32 28 76 Damage Taken 13236 | . 142 339 421 1184 92 . 269 999 173 266 2197 2267 1017 944 853 710 1363 Core 4224 | . 87 50 52 223 . . 67 92 12 . 594 849 585 578 569 155 311 Absorbed by Shields 280 | . . . . . . . . 57 63 . 57 87 . . . . 16 Ignored by Resistances 189 | . . . 14 49 . . 30 . . . . 42 . . . . 54 Regen/Repaired (Parts) 85 | . . . . 75 . . . 10 . . . . . . . . . Core Remaining (%) 55 | 100 65 87 . . . 50 . . . . 10 15 49 . 11 89 80 Volleys Fired 273 | . 11 32 42 66 6 . 19 36 4 10 12 23 . 5 . . 7 Largest 3 | . 2 2 2 2 2 . 3 3 3 3 3 3 . 2 . . 2 Hottest 230 | . 85 79 86 112 117 . 186 230 230 185 191 178 . 60 . . 80 Shots Fired 566 | . 19 64 84 121 12 . 35 93 12 30 39 36 . 10 . . 11 Gun 516 | . 19 64 84 104 12 . 31 89 12 30 39 11 . 10 . . 11 Cannon 21 | . . . . 11 . . . . . . . 10 . . . . . Launcher 12 | . . . . 6 . . . . . . . 6 . . . . . Special 17 | . . . . . . . 4 4 . . . 9 . . . . . Kinetic 169 | . 11 32 42 45 . . . . 1 10 15 6 . . . . 7 Thermal 335 | . 8 32 42 60 9 . 25 74 11 20 24 16 . 10 . . 4 Explosive . | . . . . . . . . . . . . . . . . . . Electromagnetic 58 | . . . . 16 3 . 9 19 . . . 11 . . . . . Robot Hit Streak 16 | . 7 10 16 16 12 . 8 10 9 6 5 9 . 15 . . 4 Robot Miss Streak 5 | . 4 4 3 2 1 . 3 4 5 2 3 5 . . . . 1 Penetration Max 1 | . . . . . . . . . . 1 . . . . . . . Secondary Targets 5 | . 2 . . 2 . . 1 . . . . . . . . . . Max Gunslinging Chain 1 | . 1 . . 1 . . 1 . . . . . . . . . . Shots Hit Robots 389 | . 10 42 56 90 10 . 26 62 8 21 21 26 . 9 . . 8 Core Hits 225 | . 8 19 29 49 5 . 15 42 3 10 12 27 . 4 . . 2 Critical Kills 3 | . . 1 . . . . . . . 2 . . . . . . . Critical Parts Destroyed 9 | . . . 1 2 . . . . . 5 1 . . . . . . Critical Strikes 33 | . . 3 3 6 1 . 2 9 . 8 1 . . . . . . Burn 21 | . . 2 2 4 1 . 2 9 . 1 . . . . . . . Destroy 12 | . . 1 1 2 . . . . . 7 1 . . . . . . Melee Attacks 7 | . . . . . . . . . . . . 5 . . . . 2 Impact 2 | . . . . . . . . . . . . . . . . . 2 Slashing . | . . . . . . . . . . . . . . . . . . Piercing 5 | . . . . . . . . . . . . 5 . . . . . Sneak Attacks 1 | . . . . . . . . . . . . 1 . . . . . Combat Hostiles 1 | . . . . . . . . . . . . 1 . . . . . Follow-up Attacks . | . . . . . . . . . . . . . . . . . . Damage Inflicted 9626 | . 140 607 886 2646 255 . 699 1876 198 542 576 924 . 88 . . 189 Guns 6866 | . 140 607 886 1400 223 . 552 1337 198 542 574 164 . 88 . . 155 Cannons 355 | . . . . 148 . . . . . . . 207 . . . . . Explosions 2116 | . . . . 1098 . . 147 496 . . . 375 . . . . . Melee 176 | . . . . . . . . . . . . 142 . . . . 34 Ramming 36 | . . . . . 32 . . . . . 2 2 . . . . . Kinetic 1992 | . 48 272 385 557 . . . . 30 291 229 83 . . . . 97 Thermal 5499 | . 92 335 501 1210 169 . 560 1470 168 251 345 252 . 88 . . 58 Explosive 46 | . . . . 46 . . . . . . . . . . . . . Electromagnetic 1877 | . . . . 833 54 . 139 406 . . . 445 . . . . . Impact 34 | . . . . . . . . . . . . . . . . . 34 Slashing . | . . . . . . . . . . . . . . . . . . Piercing 142 | . . . . . . . . . . . . 142 . . . . . Highest Corruption 21 | . . . . . . . . . . . 21 7 . 2 8 3 . Average Corruption 4 | . . . . . . . . . . . 5 3 . 2 3 1 . Corruption Purged 4 | . . . . . . . . . . . . 4 . . . . . Corruption Blocked . | . . . . . . . . . . . . . . . . . . Effects 27 | . . . . . . . . . . . 11 11 . . 3 2 . Message Errors 6 | . . . . . . . . . . . 2 2 . . 1 1 . Matter Fused 10 | . . . . . . . . . . . 4 5 . . 1 . . Heat Flow Errors 2 | . . . . . . . . . . . 1 1 . . . . . Energy Discharges 2 | . . . . . . . . . . . . 1 . . . 1 . Data Loss (minor) 2 | . . . . . . . . . . . 1 1 . . . . . Data Loss (major) 1 | . . . . . . . . . . . . . . . 1 . . Misfires 4 | . . . . . . . . . . . 3 1 . . . . . Overload Shots . | . . . . . . . . . . . . . . . . . . Overflow Damage 109 | . . . . 31 . . . 39 . . . 39 . . . . . Projectiles . | . . . . . . . . . . . . . . . . . . Explosions 99 | . . . . 31 . . . 39 . . . 29 . . . . . Melee 10 | . . . . . . . . . . . . 10 . . . . . Knockbacks . | . . . . . . . . . . . . . . . . . . Impact . | . . . . . . . . . . . . . . . . . . Kinetic . | . . . . . . . . . . . . . . . . . . Secondary . | . . . . . . . . . . . . . . . . . . Self-Inflicted Damage 269 | . . . . 83 . . . 98 . . . 88 . . . . . Shots 9 | . . . . 4 . . . 2 . . . 3 . . . . . Rammed 1 | . . . . . . . . . . . . 1 . . . . . Targets Rammed 5 | . . . . . 3 . . . . . 1 1 . . . . . Kicked 4 | . . . . . 3 . . . . . 1 . . . . . . Crushed . | . . . . . . . . . . . . . . . . . . Highest Temperature 375 | . 82 83 76 150 144 . 246 375 240 345 342 277 8 . . 221 81 Average Temperature 73 | . 37 27 20 22 64 . 91 107 102 141 93 86 5 . . 106 30 Received Heat Transfer 2266 | . 42 126 189 423 36 . 36 313 16 63 285 247 232 123 . 72 63 Effects 3 | . . . . . . . . 3 . . . . . . . . . Energy Bleed 1 | . . . . . . . . 1 . . . . . . . . . Interference 2 | . . . . . . . . 2 . . . . . . . . . Siege Activations . | . . . . . . . . . . . . . . . . . . Robots Corrupted 1 | . . . . . . . 1 . . . . . . . . . . Combat Hostiles . | . . . . . . . . . . . . . . . . . . Parts Fried 5 | . . . . . . . 4 1 . . . . . . . . . Impact Corruptions . | . . . . . . . . . . . . . . . . . . Robots Melted 1 | . . . . 1 . . . . . . . . . . . . . Combat Hostiles 1 | . . . . 1 . . . . . . . . . . . . . Parts Melted 18 | . . . 3 5 . . 2 4 . 1 2 . . 1 . . . Heat Transferred 11901 | . 211 999 1332 2659 407 . 1107 2938 311 518 555 383 . 370 . . 111 Parts Sabotaged . | . . . . . . . . . . . . . . . . . . Parts Stolen . | . . . . . . . . . . . . . . . . . . Parts Stripped . | . . . . . . . . . . . . . . . . . . Power Chain Reactions 14 | . . . . 7 . . 1 4 . . . 2 . . . . . Alert | -11 -10 -9 -8 -8 -8 -8 -6 -6 -6 -6 -6 -5 -4 -3 -3 -2 -1 ------- Run | Yrd Mat Mat Mat Sto Rec Scr Fac Ext Cet Arc Hub Fac Fac Res Qua Res Acc Peak Influence 1353 | . 178 413 431 722 545 . 253 569 442 415 734 538 341 539 308 396 1353 Initial 310 | . . 74 107 165 281 . . 119 310 144 144 305 236 147 303 156 231 Average 378 | . 90 206 262 593 360 . 98 414 376 364 480 461 268 349 288 261 602 Maximum Alert Level 4 | . . 2 2 3 2 . 1 2 2 2 3 2 1 2 1 1 4 Low Security (%) 18 | 100 100 67 28 2 15 . 79 4 . 9 11 . . 11 . 46 . Level 1 33 | . . 17 62 12 40 . 20 38 47 37 26 11 100 46 100 53 29 Level 2 41 | . . 14 9 59 44 . . 57 52 52 37 88 . 41 . . 40 Level 3 5 | . . . . 25 . . . . . . 23 . . . . . 22 Level 4 . | . . . . . . . . . . . . . . . . . 7 Level 5 . | . . . . . . . . . . . . . . . . . . High Security . | . . . . . . . . . . . . . . . . . . Max Security . | . . . . . . . . . . . . . . . . . . Squads Dispatched 45 | . 1 2 2 3 . . 2 3 . . 11 3 3 4 . 2 9 Investigation 13 | . . . 1 . . . . 1 . . 4 1 1 2 . . 3 Extermination 2 | . . . . . . . 1 . . . 1 . . . . . . Reinforcement 23 | . 1 2 1 1 . . 1 2 . . 5 2 2 2 . 2 2 Assault 2 | . . . . 2 . . . . . . . . . . . . . Garrison 5 | . . . . . . . . . . . 1 . . . . . 4 Intercept . | . . . . . . . . . . . . . . . . . . Searches Triggered 1 | . . . . . . . . . . . . . . . . . 1 Construction Impeded 5 | . . . . . . . . 2 . . 1 1 . 1 . . . Haulers Reinforced . | . . . . . . . . . . . . . . . . . . Active Scanning Responses . | . . . . . . . . . . . . . . . . . . Cargo Convoy Interrupts . | . . . . . . . . . . . . . . . . . . Stealth | -11 -10 -9 -8 -8 -8 -8 -6 -6 -6 -6 -6 -5 -4 -3 -3 -2 -1 --------- Run | Yrd Mat Mat Mat Sto Rec Scr Fac Ext Cet Arc Hub Fac Fac Res Qua Res Acc Distress Signals 20 | . 1 1 3 1 . . 1 . 2 . 3 . 1 3 . 1 3 Communications Jammed . | . . . . . . . . . . . . . . . . . . Distress Signals . | . . . . . . . . . . . . . . . . . . Times Spotted 335 | . 10 16 20 32 2 . 12 27 11 9 28 33 19 25 5 25 61 Peak Tracking Total 20 | . 4 8 6 7 1 . 7 4 5 2 8 9 11 14 5 13 20 Tactical Retreats 39 | . 1 1 1 . . . . 3 . . 4 10 2 4 . 3 10 Traps | -11 -10 -9 -8 -8 -8 -8 -6 -6 -6 -6 -6 -5 -4 -3 -3 -2 -1 ------- Run | Yrd Mat Mat Mat Sto Rec Scr Fac Ext Cet Arc Hub Fac Fac Res Qua Res Acc Traps Triggered 17 | . . . . . . . 2 2 . . 5 4 . 1 2 1 . Indirectly 1 | . . . . . . . . . . . . 1 . . . . . Trap Hack Attempts . | . . . . . . . . . . . . . . . . . . Triggered . | . . . . . . . . . . . . . . . . . . Disarmed . | . . . . . . . . . . . . . . . . . . Reprogrammed . | . . . . . . . . . . . . . . . . . . Reused 1 | . . . . . . . . . . . 1 . . . . . . Traps Extracted . | . . . . . . . . . . . . . . . . . . Installed 1 | . . . . . . . . . . . 1 . . . . . . Triggered 1 | . . . . . . . . . . . 1 . . . . . . Most Traps Carried 1 | . . . . . . 1 1 1 1 1 1 . . . . . . Machines | -11 -10 -9 -8 -8 -8 -8 -6 -6 -6 -6 -6 -5 -4 -3 -3 -2 -1 ---------- Run | Yrd Mat Mat Mat Sto Rec Scr Fac Ext Cet Arc Hub Fac Fac Res Qua Res Acc Machines Disabled 28 | . 1 . . 4 . . 1 4 1 3 4 7 . . . . 3 Max in Single Turn 4 | . 1 . . 1 . . . . 1 1 1 4 . . . . . Garrison Access 4 | . . . . 1 . . . . . . 1 . . 1 . . 1 Network Hub 1 | . . . . . . . . . . . 1 . . . . . . Machines Repaired . | . . . . . . . . . . . . . . . . . . Machines Dismantled 2 | . . . . 1 . . . . 1 . . . . . . . . Machines Sabotaged 1 | . . . . . . . . . . . 1 . . . . . . Overloaded Fab Kills . | . . . . . . . . . . . . . . . . . . Hacking | -11 -10 -9 -8 -8 -8 -8 -6 -6 -6 -6 -6 -5 -4 -3 -3 -2 -1 --------- Run | Yrd Mat Mat Mat Sto Rec Scr Fac Ext Cet Arc Hub Fac Fac Res Qua Res Acc Machines Accessed 96 | . 5 2 3 8 14 6 5 10 . . 8 5 5 9 2 1 13 Terminals 60 | . 4 1 1 6 6 . 4 10 . . 7 4 2 4 1 1 9 Fabricators 5 | . . . . . . . . . . . . 1 1 3 . . . Repair Stations 4 | . . . . 1 . . . . . . . . 1 . 1 . 1 Recycling Units 13 | . 1 . 2 . 8 . . . . . . . . . . . 2 Scanalyzers 3 | . . 1 . . . . 1 . . . . . 1 . . . . Garrison Access 5 | . . . . 1 . . . . . . 1 . . 2 . . 1 Total Hacks 297 | . 11 16 6 15 49 40 12 14 . . 26 25 31 22 6 2 22 Successful 185 | . 10 11 2 9 36 40 7 12 . . 11 8 18 9 2 . 10 Failed 112 | . 1 5 4 6 13 . 5 2 . . 15 17 13 13 4 2 12 Catastrophic 14 | . . . . . . . . . . . . 4 . 4 1 . 5 Database Lockouts . | . . . . . . . . . . . . . . . . . . Manual 108 | . 5 3 5 5 27 . 5 6 1 . 20 12 7 6 . . 6 Terminals 174 | . 10 3 4 11 34 . 9 14 . . 25 23 10 10 1 2 18 Fabricators 12 | . . . . . . . . . . . . 2 1 9 . . . Repair Stations 14 | . . . . 3 . . . . . . . . 5 . 5 . 1 Recycling Units 20 | . 1 . 2 . 15 . . . . . . . . . . . 2 Scanalyzers 31 | . . 13 . . . . 3 . . . . . 15 . . . . Garrison Access 6 | . . . . 1 . . . . . . 1 . . 3 . . 1 Terminal Hacks 99 | . 5 . . 4 17 40 3 9 . . 4 5 1 4 1 . 6 Record 42 | . . . . . . 39 . . . . . . . 1 1 . 1 Part Schematic 6 | . . . . . 6 . . . . . . . . . . . . Robot Schematic 1 | . . . . . . . . . . . 1 . . . . . . Robot Analysis 3 | . . . . . 2 . . 1 . . . . . . . . . Prototype ID Bank 4 | . 2 . . . 2 . . . . . . . . . . . . Open Door 14 | . . . . 3 . . 1 7 . . . . . 1 . . 2 Level Access Points 1 | . . . . . 1 . . . . . . . . . . . . Branch Access Points 3 | . . . . . . . 1 . . . . 1 . 1 . . . Emergency Access Points 1 | . 1 . . . . . . . . . . . . . . . . Terminal Index 2 | . 1 . . . . . . . . . . . . 1 . . . Recycling Unit Index 4 | . . . . 1 . . . . . . 1 1 . . . . 1 Scanalyzer Index 1 | . . . . . . . 1 . . . . . . . . . . Alert Level 5 | . 1 . . . 3 . . . . . . 1 . . . . . Unreport Threat 4 | . . . . . 2 . . . . . 1 1 . . . . . Locate Traps 1 | . . . . . 1 . . . . . . . . . . . . Dispatch Records 2 | . . . . . . . . 1 . . . . 1 . . . . Maintenance Status 1 | . . . . . . . . . . . . . . . . . 1 Security Status 1 | . . . . . . . . . . . . . . . . . 1 Recall Investigation 1 | . . . . . . . . . . . . 1 . . . . . Zone Layout 1 | . . . . . . . . . . . 1 . . . . . . Derelict Proto ID Bank 1 | . . . . . . 1 . . . . . . . . . . . Fabricator Hacks . | . . . . . . . . . . . . . . . . . . Repair Station Hacks 5 | . . . . 2 . . . . . . . . 1 . 1 . 1 Scan Component 1 | . . . . 1 . . . . . . . . . . . . . Repair 1 | . . . . 1 . . . . . . . . . . . . . Refit 3 | . . . . . . . . . . . . . 1 . 1 . 1 Recycling Unit Hacks 8 | . 1 . 1 . 6 . . . . . . . . . . . . Report Inventory 8 | . 1 . 1 . 6 . . . . . . . . . . . . Scanalyzer 25 | . . 11 . . . . 1 . . . . . 13 . . . . Insert Component 12 | . . 6 . . . . 1 . . . . . 5 . . . . Analyze 13 | . . 5 . . . . . . . . . . 8 . . . . Garrison Access Hacks 3 | . . . . 1 . . . . . . 1 . . 1 . . . Seal Access 3 | . . . . 1 . . . . . . 1 . . 1 . . . Unauthorized Hacks 45 | . 4 . 1 2 13 . 3 3 . . 6 3 3 4 . . 3 Terminals 28 | . 4 . . 2 5 . 3 3 . . 6 3 2 . . . . Assimilate 1 | . 1 . . . . . . . . . . . . . . . . Botnet 24 | . 3 . . 2 5 . 3 3 . . 3 3 2 . . . . Operators 1 | . . . . . . . . . . . 1 . . . . . . Sabotage 2 | . . . . . . . . . . . 2 . . . . . . Fabricators 5 | . . . . . . . . . . . . . 1 4 . . . Report 2 | . . . . . . . . . . . . . . 2 . . . Liberate 2 | . . . . . . . . . . . . . . 2 . . . Download 1 | . . . . . . . . . . . . . 1 . . . . Repair Stations 2 | . . . . . . . . . . . . . . . . . 2 Recycling Units 9 | . . . 1 . 8 . . . . . . . . . . . . Tunnel 9 | . . . 1 . 8 . . . . . . . . . . . . Scrapoids 2 | . . . . . . . . . . . . . . . . . 2 Scanalyzers . | . . . . . . . . . . . . . . . . . . Garrison Access 1 | . . . . . . . . . . . . . . . . . 1 Jam 1 | . . . . . . . . . . . . . . . . . 1 Data Cores Recovered 3 | . . . . 1 . . . 1 . . 1 . . . . . . Used 1 | . . . . . . . . 1 . . . . . . . . . Hacking Detections 62 | . 4 2 1 6 7 . 4 4 . . 7 5 3 7 1 1 10 Full Trace Events 3 | . . . . . 1 . . . . . 2 . . . . . . Feedback Events . | . . . . . . . . . . . . . . . . . . Feedback Blocked . | . . . . . . . . . . . . . . . . . . Robot Schematics Acquired 2 | . . . . . . . . . . . 1 . . . 1 . . Robots Built . | . . . . . . . . . . . . . . . . . . Authchips . | . . . . . . . . . . . . . . . . . . Time . | . . . . . . . . . . . . . . . . . . Total Robot Build Rating . | . . . . . . . . . . . . . . . . . . Part Schematics Acquired 25 | . . 5 . . 6 . . . . . . . 6 . 8 . . Parts Built . | . . . . . . . . . . . . . . . . . . Authchips . | . . . . . . . . . . . . . . . . . . Time . | . . . . . . . . . . . . . . . . . . Total Part Build Rating . | . . . . . . . . . . . . . . . . . . Parts Repaired 1 | . . . . 1 . . . . . . . . . . . . . Time 38 | . . . . 38 . . . . . . . . . . . . . Parts Recycled . | . . . . . . . . . . . . . . . . . . Recycled Matter . | . . . . . . . . . . . . . . . . . . Retrieved Matter . | . . . . . . . . . . . . . . . . . . Retrieved Components . | . . . . . . . . . . . . . . . . . . Parts Scanalyzed 10 | . . 5 . . . . . . . . . . 5 . . . . Part Schematics Acquired 10 | . . 5 . . . . . . . . . . 5 . . . . Parts Damaged 2 | . . . . . . . . . . . . . 2 . . . . Bothacking | -11 -10 -9 -8 -8 -8 -8 -6 -6 -6 -6 -6 -5 -4 -3 -3 -2 -1 ------------ Run | Yrd Mat Mat Mat Sto Rec Scr Fac Ext Cet Arc Hub Fac Fac Res Qua Res Acc Used RIF Installer . | . . . . . . . . . . . . . . . . . . Robots Hacked 2 | . . . . . . . . . . . . 2 . . . . . Non-combat . | . . . . . . . . . . . . . . . . . . Combat . | . . . . . . . . . . . . . . . . . . Robot Hacks Applied . | . . . . . . . . . . . . . . . . . . Manual 2 | . . . . . . . . . . . . 2 . . . . . Relay Couplers Released . | . . . . . . . . . . . . . . . . . . Fabnet Peak Effective % . | . . . . . . . . . . . . . . . . . . Robots Rewired 9 | . . . . . . . . 9 . . . . . . . . . Allies Hacked . | . . . . . . . . . . . . . . . . . . Hacks Repelled . | . . . . . . . . . . . . . . . . . . Allies | -11 -10 -9 -8 -8 -8 -8 -6 -6 -6 -6 -6 -5 -4 -3 -3 -2 -1 -------- Run | Yrd Mat Mat Mat Sto Rec Scr Fac Ext Cet Arc Hub Fac Fac Res Qua Res Acc Total Allies 48 | . 1 . . 12 . 1 . 19 5 . . . . . . . 10 Largest Group 12 | . 1 1 . 10 10 10 10 11 12 7 5 . . . . . 5 Highest-Rated Group 847 | . 10 10 . 173 173 257 257 503 847 644 405 . . . . . 320 Highest-Rated Ally 159 | . 10 10 . 31 29 100 100 159 159 143 96 . . . . . 64 Total Orders 58 | . . 2 . 2 9 15 7 7 12 . 4 . . . . . . STAY 10 | . . 1 . . . 2 2 2 3 . . . . . . . . ROAM 4 | . . . . . 1 3 . . . . . . . . . . . FOLLOW 8 | . . 1 . . . 3 2 . 2 . . . . . . . . GUARD 14 | . . . . . 2 . . 2 6 . 4 . . . . . . AID 7 | . . . . . . . 3 3 1 . . . . . . . . EXPLORE 10 | . . . . 1 4 5 . . . . . . . . . . . RETURN 5 | . . . . 1 2 2 . . . . . . . . . . . Ally Attacks 598 | . . . . 37 14 . 47 135 103 22 62 . . . . . 178 Total Damage 17276 | . . . . 524 179 . 1151 3712 4096 840 2475 . . . . . 4299 Kills 97 | . . . . 6 2 . 9 24 14 4 15 . . . . . 23 Allies Corrupted 1 | . . . . . . . . . . . 1 . . . . . . Allies Melted . | . . . . . . . . . . . . . . . . . . Intel | -11 -10 -9 -8 -8 -8 -8 -6 -6 -6 -6 -6 -5 -4 -3 -3 -2 -1 ------- Run | Yrd Mat Mat Mat Sto Rec Scr Fac Ext Cet Arc Hub Fac Fac Res Qua Res Acc Robot Analysis Total 3 | . . . . . 2 . . 1 . . . . . . . . . Derelict Logs Recovered . | . . . . . . . . . . . . . . . . . . Drone Launches 5 | . . . . 1 2 2 . . . . . . . . . . . Drone Recoveries 5 | . . . . 1 2 2 . . . . . . . . . . . Exploration | -11 -10 -9 -8 -8 -8 -8 -6 -6 -6 -6 -6 -5 -4 -3 -3 -2 -1 ------------- Run | Yrd Mat Mat Mat Sto Rec Scr Fac Ext Cet Arc Hub Fac Fac Res Qua Res Acc Turns Passed 11856 | 43 170 443 505 775 782 3286 708 1567 667 138 670 799 200 237 166 162 538 Spaces Moved 11177 | 40 169 342 344 390 478 2654 649 1184 353 105 556 901 411 497 329 374 1401 Core 240 | 3 . . . . . . . . . . 1 73 25 . 138 . . Treads . | . . . . . . . . . . . . . . . . . . Legs 2830 | . . . . 161 478 1987 . . . . 204 . . . . . . Wheels 4838 | 37 169 342 344 229 . 667 649 1184 353 105 351 406 2 . . . . Hover 911 | . . . . . . . . . . . . . . . 9 303 599 Flight 2358 | . . . . . . . . . . . . 422 384 497 182 71 802 Fastest Speed 24 | 50 80 80 90 93 130 80 72 72 83 80 80 37 42 39 40 28 24 Average Speed 79 | 77 80 92 95 112 130 108 81 80 83 80 100 70 46 41 48 31 27 Slowest Speed 250 | 80 80 125 110 130 130 200 83 83 83 83 200 135 250 45 100 112 109 Overloaded Moves . | . . . . . . . . . . . . . . . . . . Propulsion Burnouts . | . . . . . . . . . . . . . . . . . . Robots Hopped 23 | . . . . . . . . . . . . 1 3 4 4 . 11 Cave-ins Triggered . | . . . . . . . . . . . . . . . . . . Exploration Rate (%) 48 | 3 47 40 27 72 99 95 20 96 79 79 44 29 13 18 50 17 36 Regions Visited 17 Branch Regions 8 Pre-discovered Areas 9 | . . . 1 . 8 . . . . . . . . . . . . Known Exits Taken 9 | . . . . . . 1 1 1 1 1 1 1 1 1 . . . Unknown Exits Taken 8 | 1 1 1 1 1 1 . . . . . . . . . 1 1 . Scrap Searched 3 | . . . . . . 3 . . . . . . . . . . . Spaces Dug 3 | . . . . 2 . . . . . . . . . . . . 1 Terrain Destroyed 108 | . . . . 45 . . . 22 1 1 2 36 . . . . 1 Melee 1 | . . . . . . . . . . . . . . . . . 1 Projectile 11 | . . . . 2 . . . 3 1 1 2 2 . . . . . AOE 96 | . . . . 43 . . . 19 . . . 34 . . . . . Terrain Rammed . | . . . . . . . . . . . . . . . . . . Walls Destroyed . | . . . . . . . . . . . . . . . . . . Machines Disabled . | . . . . . . . . . . . . . . . . . . Actions | -11 -10 -9 -8 -8 -8 -8 -6 -6 -6 -6 -6 -5 -4 -3 -3 -2 -1 --------- Run | Yrd Mat Mat Mat Sto Rec Scr Fac Ext Cet Arc Hub Fac Fac Res Qua Res Acc Total 13554 | 48 186 410 447 590 626 3077 783 1715 698 135 637 1017 416 509 329 411 1520 Wait 1579 | . . 7 39 70 135 327 85 398 321 13 37 40 . 4 . 23 80 Move 11119 | 39 168 341 343 389 477 2653 648 1183 352 104 555 898 404 488 320 373 1384 Hop 17 | . . . . . . . . . . . . 1 3 4 4 . 5 Pick Up 102 | 3 2 7 5 13 2 42 7 4 1 . 1 7 2 2 . . 4 Fast Attach 114 | 6 1 6 4 6 . 5 3 . 2 3 11 24 2 6 3 10 22 Attach 36 | . 1 2 2 6 . 1 4 2 . . 4 6 1 . 1 3 3 Detach 10 | . 1 1 . . . . . . . 1 3 1 . . 1 1 1 Swap 64 | . 1 4 4 16 1 . 9 14 5 1 6 3 . . . . . Drop 131 | . 1 10 8 14 2 49 5 4 4 3 6 8 4 . . 1 12 Fire 273 | . 11 32 42 66 6 . 19 36 4 10 12 23 . 5 . . 7 Melee 7 | . . . . . . . . . . . . 5 . . . . 2 Ram 1 | . . . . . . . . . . . . 1 . . . . . Kick 4 | . . . . . 3 . . . . . 1 . . . . . . Crush . | . . . . . . . . . . . . . . . . . . Escape Stasis 8 | . . . . . . . . 8 . . . . . . . . . Rewire 65 | . . . . . . . . 65 . . . . . . . . . Trap 1 | . . . . . . . . . . . 1 . . . . . . Miscellaneous 23 | . . . . 10 . . 3 1 9 . . . . . . . . Route ------- -11/Scrapyard -10/Materials (discovered 2 exits: *Mat / [*Min]) -9/Materials -8/Materials -8/Storage (discovered 2 exits: [*Fac] / *Rec) -8/Recycling (discovered 2 exits: *Fac / *Scr) -8/Scraptown (discovered 2 exits: *Fac x2) -6/Factory (discovered 4 exits: *Low x2 / *Ext x2) -6/Extension (discovered 2 exits: *Fac / *Cet) -6/Cetus (discovered 2 exits: *Fac / *Arc) -6/Archives (discovered 3 exits: *Fac / *Hub x2) -6/Hub_04(d) (discovered 2 exits: *Fac x2) -5/Factory (discovered 3 exits: *Fac / Upp x2) -4/Factory -3/Research (discovered 3 exits: Arm / *Qua x2) -3/Quarantine -2/Research -1/Access To Fleet Rendezvous History --------- Turn | Location | Event 6 | -11/Scrapyard | Discovered new exit (range 14) 44 | -11/Scrapyard | Entered Materials 125 | -10/Materials | Discovered new exit (range 7) 186 | -10/Materials | Discovered new exit (range 10) 214 | -10/Materials | Entered another Materials area 214 | -9/Materials | Accompanied by 1 ally 214 | -9/Materials | Evolved 2 slots: Utility x2 308 | -9/Materials | Build established: Mutant 569 | -9/Materials | Destroyed 8 combat bots 619 | -9/Materials | Discovered new exit (range 4) 657 | -9/Materials | Entered another Materials area 657 | -8/Materials | Evolved 2 slots: Propulsion x1, Utility x1 775 | -8/Materials | Discovered new exit (range 5) 952 | -8/Materials | Build established: Scavenger-Mutant 1162 | -8/Materials | Entered Storage 1195 | -8/Storage | Met a pair of Derelict thieves 1452 | -8/Storage | Lost 3 parts (2n1u) 1610 | -8/Storage | Discovered new exit (range 16) 1714 | -8/Storage | Build established: Mutant 1747 | -8/Storage | Repaired Imp. Light Armor Plating? 1904 | -8/Storage | Assisted by bots powering up and referring to "LRC-V3" 1919 | -8/Storage | Used back door to open Recycling access 1919 | -8/Storage | Discovered new exit (range 5) 1937 | -8/Storage | Entered Recycling 1937 | -8/Recycling | Accompanied by 10 allies 2189 | -8/Recycling | Build established: Commander-Mutant 2209 | -8/Recycling | Identified exit to Factory 2215 | -8/Recycling | Scanned before Scraplab entrance 2234 | -8/Recycling | Entered Scraplab 2242 | -8/Recycling | Discovered new exit (range 6) 2719 | -8/Recycling | Entered Scraptown 2719 | -8/Scraptown | Accompanied by 9 allies 2841 | -8/Scraptown | Discovered exit to Factory (range 71) 2913 | -8/Scraptown | Visited Cyclists 2959 | -8/Scraptown | Visited Cave Peace 3030 | -8/Scraptown | Visited Red Mages 3058 | -8/Scraptown | Visited Fellowship of the Rings 3095 | -8/Scraptown | Visited TADAMA 3292 | -8/Scraptown | Visited The Evicted 3343 | -8/Scraptown | Heard Great Nut preacher, LISTEN AND RECITE! 3460 | -8/Scraptown | Visited UFD Registry 3460 | -8/Scraptown | Registered with UFD as "Gammarigger" 3494 | -8/Scraptown | Entered Cyclist Reading Room 3555 | -8/Scraptown | Visited Science Guys 3609 | -8/Scraptown | Visited Scrapoid Research Area 3609 | -8/Scraptown | Discovered exit to Factory (range 57) 3627 | -8/Scraptown | Visited Junk Repository 3643 | -8/Scraptown | Visited Curators Association 3662 | -8/Scraptown | Visited Scrap Suit Storage 3697 | -8/Scraptown | Visited Infowarlord's Domain 3709 | -8/Scraptown | Found Exp. Sensor Array 3755 | -8/Scraptown | Visited Chapter 10 3791 | -8/Scraptown | Visited Botcube Research 3812 | -8/Scraptown | Visited Abandonware Association 3827 | -8/Scraptown | Learned abandonware demo "REVENGE.EXE" 3929 | -8/Scraptown | Found Scrap Suit 4000 | -8/Scraptown | Visited Modified Component R&D 4099 | -8/Scraptown | Found Scrap Suit 4308 | -8/Scraptown | Build established: Commander-Scrapper 5209 | -8/Scraptown | Found Lrg. Botcube 5292 | -8/Scraptown | Lrg. Botcube activated 5328 | -8/Scraptown | Lrg. Botcube completed mutation into legged form, armed with 2 guns, 2 cannons. 6005 | -8/Scraptown | Entered Factory 6005 | -6/Factory | Accompanied by 10 allies 6005 | -6/Factory | Evolved 4 slots: Propulsion x1, Utility x2, Weapon x1 6052 | -6/Factory | Discovered new exit (range 4) 6054 | -6/Factory | Identified exit to Lower Caves 6341 | -6/Factory | Lost 3 allies 6354 | -6/Factory | Spotted B-75 Beast 6451 | -6/Factory | Allies destroyed B-75 Beast 6540 | -6/Factory | Lost 3 allies 6613 | -6/Factory | Identified exit to Extension 6713 | -6/Factory | Entered Extension 6713 | -6/Extension | Accompanied by 2 allies 7021 | -6/Extension | Build established: Scrapper 7087 | -6/Extension | Rescued a captive Derelict 7118 | -6/Extension | Rescued a captive Derelict 7122 | -6/Extension | Rescued a captive Derelict 7418 | -6/Extension | Spotted B-75 Beast 7428 | -6/Extension | Spotted B-75 Beast 7433 | -6/Extension | Allies destroyed B-75 Beast 7447 | -6/Extension | Allies destroyed B-75 Beast 7451 | -6/Extension | Build established: Commander-Scrapper 7469 | -6/Extension | Lost 5 allies 7750 | -6/Extension | Rescued a captive Derelict 7797 | -6/Extension | Rescued a captive Derelict 7797 | -6/Extension | Rescued a captive Derelict 7808 | -6/Extension | Rescued a captive Derelict 7886 | -6/Extension | Lost 3 allies 8043 | -6/Extension | Rescued A7 8073 | -6/Extension | Rescued a captive Derelict 8075 | -6/Extension | Rescued a captive Derelict 8232 | -6/Extension | Discovered new exit (range 16) 8232 | -6/Extension | Discovered new exit (range 16) 8252 | -6/Extension | Identified exit to Cetus 8280 | -6/Extension | Entered Cetus 8280 | -6/Cetus | Accompanied by 11 allies (A7) 8285 | -6/Cetus | Acquired a Cetus Manufacturing Module code from A7 8294 | -6/Cetus | Spotted Cetus Guard 8294 | -6/Cetus | Spotted Cetus Guard 8301 | -6/Cetus | Spotted Cetus Guard 8301 | -6/Cetus | Spotted Cetus Guard 8316 | -6/Cetus | Allies destroyed Cetus Guard 8323 | -6/Cetus | Allies destroyed Cetus Guard 8332 | -6/Cetus | Allies destroyed Cetus Guard 8367 | -6/Cetus | Lost 4 allies 8458 | -6/Cetus | Escorted A7 to Cetus Mainframe 8476 | -6/Cetus | Started Cetus Manufacturing Module 8501 | -6/Cetus | Manufactured an Enhanced Grunt 8526 | -6/Cetus | Manufactured an Enhanced Grunt 8551 | -6/Cetus | Manufactured an Enhanced Grunt 8576 | -6/Cetus | Manufactured an Enhanced Grunt 8601 | -6/Cetus | Manufactured an Enhanced Grunt 8727 | -6/Cetus | Discovered new exit (range 16) 8761 | -6/Cetus | Spotted Cetus Guard 8770 | -6/Cetus | Spotted Cetus Guard 8771 | -6/Cetus | Spotted Cetus Guard 8771 | -6/Cetus | Spotted Cetus Guard 8781 | -6/Cetus | Allies destroyed Cetus Guard 8793 | -6/Cetus | Allies destroyed Cetus Guard 8793 | -6/Cetus | Allies destroyed Cetus Guard 8793 | -6/Cetus | Allies destroyed Cetus Guard 8793 | -6/Cetus | Discovered new exit (range 16) 8802 | -6/Cetus | Met Revision 17 8824 | -6/Cetus | Lost 5 allies 8913 | -6/Cetus | Identified exit to Archives 8947 | -6/Cetus | Entered Archives 8947 | -6/Archives | Accompanied by 7 allies (A7) 8952 | -6/Archives | Received a hacking code to weaken MAIN.C 9001 | -6/Archives | Discovered new exit (range 15) 9008 | -6/Archives | Discovered new exit (range 15) 9054 | -6/Archives | Discovered new exit (range 16) 9073 | -6/Archives | Identified exit to Hub_04(d) 9085 | -6/Archives | Entered Hub_04(d) 9085 | -6/Hub_04(d) | Accompanied by 5 allies 9123 | -6/Hub_04(d) | Garrison activated, responded to threat 9356 | -6/Hub_04(d) | Found Prototype Device 9382 | -6/Hub_04(d) | Discovered new exit (range 5) 9501 | -6/Hub_04(d) | Identified exit to Factory 9529 | -6/Hub_04(d) | Network Hub disabled 9553 | -6/Hub_04(d) | Spotted Lightning 9567 | -6/Hub_04(d) | Spotted Lightning 9569 | -6/Hub_04(d) | Lost 3 allies 9615 | -6/Hub_04(d) | System corruption reached 10% 9632 | -6/Hub_04(d) | Spotted Lightning 9683 | -6/Hub_04(d) | Spotted B-75 Beast 9700 | -6/Hub_04(d) | Core integrity fell below 50% 9717 | -6/Hub_04(d) | Discovered exit to Factory (range 13) 9725 | -6/Hub_04(d) | Core integrity fell below 20% 9755 | -6/Hub_04(d) | Entered Factory 9755 | -5/Factory | Evolved 2 slots: Utility x2 9755 | -5/Factory | Identified Exp. Thermal Shield 9785 | -5/Factory | Lost 9 parts (4n2u3w) 9871 | -5/Factory | Lost 4 parts (1p1n1u1w) 10053 | -5/Factory | Spotted B-75 Beast 10332 | -5/Factory | Core integrity fell below 50% 10347 | -5/Factory | Lost 10 parts (1p2n4u3w) 10405 | -5/Factory | Lost 3 parts (2n1u) 10408 | -5/Factory | Core integrity fell below 20% 10455 | -5/Factory | Identified exit to Upper Caves 10505 | -5/Factory | Build established: Hacker-Mutant 10507 | -5/Factory | Discovered new exit (range 5) 10508 | -5/Factory | Identified exit to Factory 10554 | -5/Factory | Entered another Factory area 10554 | -4/Factory | Evolved 2 slots: Propulsion x2 10649 | -4/Factory | Discovered new exit (range 4) 10650 | -4/Factory | Identified exit to Research 10725 | -4/Factory | Core integrity fell below 50% 10752 | -4/Factory | Lost 8 parts (1p3n3u1w) 10754 | -4/Factory | Entered Research 10754 | -3/Research | Evolved 2 slots: Propulsion x1, Weapon x1 10867 | -3/Research | Identified exit to Armory 10867 | -3/Research | Identified exit to Quarantine 10911 | -3/Research | Lost 6 parts (2p2n1u1w) 10954 | -3/Research | Revision forces began assault on 0b10 10991 | -3/Research | Entered Quarantine 10993 | -3/Quarantine | Spotted Alpha 7 11022 | -3/Quarantine | Core integrity fell below 50% 11061 | -3/Quarantine | Lost 8 parts (1p3n2u2w) 11067 | -3/Quarantine | Cryocooling Duct disabled 11067 | -3/Quarantine | Cryocooling Duct disabled 11082 | -3/Quarantine | Ambient heat levels rising (+40) 11082 | -3/Quarantine | Non-combat units ordered to evacuate 11082 | -3/Quarantine | Combat units ordered to evacuate 11108 | -3/Quarantine | Found Alien Artifact 11108 | -3/Quarantine | Identified Core Reset Matrix 11108 | -3/Quarantine | Used Core Reset Matrix 11112 | -3/Quarantine | Detected hypermatrix surge 11112 | -3/Quarantine | Sensed 7 artifacts in vicinity 11119 | -3/Quarantine | Core integrity fell below 20% 11147 | -3/Quarantine | Discovered new exit (range 11) 11157 | -3/Quarantine | Entered Research 11157 | -2/Research | Evolved 2 slots: Power x1, Propulsion x1 11251 | -2/Research | Spotted B-90 Cyclops 11318 | -2/Research | Discovered new exit (range 4) 11319 | -2/Research | Entered Access 11319 | -1/Access | Evolved 2 slots: Utility x2 11471 | -1/Access | Garrison activated, responded to threat 11478 | -1/Access | Build established: Sprinter 11569 | -1/Access | Search patrols dispatched 11572 | -1/Access | Scrapoids reinforcements arrived? 11603 | -1/Access | Garrison activated, responded to threat 11702 | -1/Access | Scrapoid reinforcements arrived 11743 | -1/Access | Lost 3 parts (1p2u) 11805 | -1/Access | Spotted B-99 Colossus 11855 | -1/Access | Discovered new exit (range 6) 11857 | *** | Heading to fleet! Last Messages --------------- Recoil is somewhat of a problem with this weapon, thus it is ideally paired with stabilizers in multi-weapon systems. A hypervelocity variant fires the slugs with four times the penetrating force. Multirail systems have just completed prototype testing and entered production, currently in use on the latest B-99 Colossus and Alpha 7 designs. >>Enumerate(Guards) Retrieving latest reported positions... Security request, restricting to local area... Found 1 active security squad. Downloaded coordinate data. 11837_ Penetrated by Slug. 11837_ Slug penetrates Wall. 11841_ K-01 Serf cleans the Energy Cycler. 11850_ K-01 Serf cleans the Terminal. 11854_ Connecting with Terminal... >>Open(Door) Sealed Barrier opened. 11855_ The Access Shell folds into the floor. 11855_ EXIT=FOUND [Achievement: Home At Last?] Map ----- +----------------------------------------------------+ | ???????????+ +??????????????????????????????????? | | ???????????# #??????????????????????????????????? | | ???????????# #??????????????????????????????????? | | ???????????# #??????????????????????????????????? | | ???????????# #??????????????????????????????????? | | ???????????# #??????????????????????????????????? | | ???????????# #??????????????????????????????????? | | ???????????# #??????????????????????????????????? | | ???????????# #??????????????????????????????????? | | ???????????# #??????????????????????????????????? | | ############ ########################???????????? | | != k ???????????? | | != ????????????? | | == #######+##### ""#?????????????????? | | #????? ???# ""#?????????????????? | | #????? ???# ""#?????????????????? | | #????" ??# T#?????????????????? | | " #????"" ??# ""#?????????????????? | | """ #??? """ #?# ""#?????????????????? | | """ #??? " ### ""##????????????????? | | " #?? ## #????????????????? | | #?? ### ##????????????????? | | #???#######?# #?????????????????? | | #???????????# #?????????????????? | | #####+###???????????# #?????????????????? | | ????????????????????# @" #?????????????????? | | ????????????????????# "" #?????????????????? | | ????????????????????# #?????????????????? | | ????????????????????# #?????????????????? | | ????????????????????# #?????????????????? | | ????????????????????#""""""""""#?????????????????? | | ?????????????????????????????????????????????????? | | ?????????????????????????????????????????????????? | | ?????????????????????????????????????????????????? | | ?????????????????????????????????????????????????? | | ?????????????????????????????????????????????????? | | ?????????????????????????????????????????????????? | | ?????????????????????????????????????????????????? | | ?????????????????????????????????????????????????? | | ?????????????????????????????????????????????????? | | ?????????????????????????????????????????????????? | | ?????????????????????????????????????????????????? | | ?????????????????????????????????????????????????? | | ?????????????????????????????????????????????????? | | ?????????????????????????????????????????????????? | | ?????????????????????????????????????????????????? | | ?????????????????????????????????????????????????? | | ?????????????????????????????????????????????????? | | ?????????????????????????????????????????????????? | | ?????????????????????????????????????????????????? | +----------------------------------------------------+ Best States ------------- Heat Dissipation 79 Energy Generation 43 Energy Capacity 650 Matter Stores 300 Matter Capacity 300 Sight Range 16 Robot Scan Range 20 Terrain Scan Density 10 Jamming Range 16 Armor Coverage 225 Resistance: KI 25 Resistance: TH 30 Evasion (%) 65 Targeting Accuracy 8 Melee Accuracy 6 Launcher Accuracy 40 Target Analysis 6 Core Analysis 6 Recoil Reduction 6 Offensive Hacking 22 Defensive Hacking 10 Item Schematics ----------------- Exp. Melee Analysis Suite | -3/Quarantine | Archive Com. Particle Reactor | -3/Quarantine | Archive Prc. Phase Gun | -3/Quarantine | Archive Adv. KE Penetrator | -3/Quarantine | Archive Hvy. Neutron Cannon | -3/Quarantine | Archive Exp. Thermal Defense Suite | -3/Quarantine | Archive Plasma Sword | -3/Quarantine | Archive Thunder Hammer | -3/Quarantine | Archive Robot Schematics ------------------ R-06 Scavenger | -3/Quarantine | Archive Fabricated ------------ Nothing Alien Tech Used ----------------- Core Reset Matrix Achievements -------------- Alien Roots Home At Last? Challenges ------------ None Game ------ Seed BombUltimateChronowheel Manual? 0 Play Time 05:54:31 Cumulative 127.1 hours Start 2024.08.25 @ 11:06:03 End 2024.08.25 @ 18:15:04 Sessions 1 Manual Loads 0 Difficulty Rogue Special Mode None Game No. 56 Rogue 13 Adventurer 43 Explorer 0 Win Type 2 Total 4 Types 2/0/1/0/0/0/0/1/0 Lore% 55 Gallery% 61 Achievement% 54 Wizard Run 0 Options --------- Layout 0 ASCII 0 Keyboard 0 Movement Mouse Keybinds 0 Fullscreen 1 Font 24/Smallcaps Map View 76x50 Zoom Use 0% Tactical HUD 1 Map Filters NONE Filters NONE Steam 1 RUN: beb85a2b-4a71-4f89-9d49-830c5fb6275f